bitfinex/quotes_ETHUSD_20250425
["timestamp","ask_amount","ask_price","bid_price","bid_amount"]
[1745594105580,0.8015,1807.9,1807.5,0.05531325]
[1745594105783,0.8015,1807.9,1807.4,2.82334802]
[1745594106093,0.8015,1807.9,1807.5,0.2823348]
[1745594106297,0.8015,1808.4,1807.5,2.35498282]
[1745594106484,0.8015,1808.4,1807.6,6.243]
[1745594106659,0.766,1808.3,1807.6,6.243]
[1745594106856,5.94583318,1808.0,1807.5,2.07264802]
[1745594107059,0.766,1807.8,1807.5,2.07264802]
[1745594107509,5.94583318,1808.7,1807.5,2.07264802]
[1745594107668,0.7661,1808.5,1807.6,0.05532424]
[1745594108004,0.7661,1808.5,1807.5,8.31564802]
[1745594109479,0.7661,1808.5,1807.7,1.20446645]
[1745594109695,0.7661,1808.5,1807.9,1.20446645]
[1745594109866,0.8074,1808.8,1808.1,1.99926645]
[1745594110068,3.8074,1808.8,1808.1,1.03149145]
[1745594110285,0.8074,1808.8,1808.2,0.05529382]
[1745594110659,1.20446645,1808.7,1808.1,1.03149145]
[1745594110863,1.20446645,1808.7,1808.0,8.37094211]
[1745594111072,0.8074,1808.8,1808.0,9.57540856]
[1745594111382,0.8074,1808.8,1808.2,0.7522]
[1745594111795,0.1,1808.9,1808.4,5.94246217]
[1745594111963,0.1,1808.9,1808.6,0.7867]
[1745594112163,0.1,1808.9,1808.6,2.85934802]
[1745594112700,0.1,1808.9,1808.8,2.85934802]
[1745594113301,0.1,1808.9,1808.8,2.07264802]
[1745594113680,0.1,1808.9,1808.8,2.86394802]
[1745594114387,0.1,1808.9,1808.8,9.35641019]
[1745594114699,0.1,1808.9,1808.8,10.95047132]
[1745594114903,0.1,1808.9,1808.8,10.40047132]
[1745594115065,0.1,1808.9,1808.8,4.45800915]
[1745594115270,0.1,1808.9,1808.8,11.00573687]
[1745594116097,0.1,1808.9,1808.8,10.95047132]
[1745594116608,0.1,1808.9,1808.8,11.00573083]
[1745594117014,0.1,1808.9,1808.8,10.95047132]
[1745594117235,0.1,1808.9,1808.8,14.0057272]
[1745594117503,0.1,1808.9,1808.8,13.95047132]
[1745594117907,0.1,1808.9,1808.8,8.00800915]
[1745594118067,0.1,1808.9,1808.8,7.51327196]
[1745594118401,0.1,1808.9,1808.8,13.45573413]
[1745594118704,0.1,1808.9,1808.8,13.95047132]
[1745594119507,0.1,1808.9,1808.8,13.40047132]
[1745594119897,0.1,1808.9,1808.8,13.95047132]
[1745594121881,0.1,1808.9,1808.8,7.45800915]
[1745594122210,0.1,1808.9,1808.8,7.51327394]
[1745594122573,0.8993,1808.9,1808.8,2.07264802]
[1745594124819,0.1,1808.9,1808.8,2.07264802]
[1745594125986,0.926,1808.9,1808.8,2.07264802]
[1745594126892,0.926,1808.9,1808.4,2.07264802]
[1745594127827,3.1,1808.9,1808.4,2.07264802]
[1745594128001,0.8032,1808.8,1808.4,2.07264802]
[1745594128527,0.8032,1808.8,1808.5,0.05528735]
[1745594128898,0.1,1808.9,1808.4,2.53742588]
[1745594129214,0.1,1808.9,1808.4,2.4821428]
[1745594129589,0.8207,1808.8,1808.4,2.07264802]
[1745594129858,0.8207,1808.7,1808.1,6.221]
[1745594130032,6.76736217,1808.3,1807.4,2.07264802]
[1745594130270,0.8249,1808.1,1807.4,2.07264802]
[1745594130469,0.8249,1807.9,1807.4,2.07264802]
[1745594130669,0.8249,1807.9,1807.1,8.01511019]
[1745594130872,0.8249,1807.9,1807.3,5.94246217]
[1745594131172,0.8249,1807.9,1807.4,6.222]
[1745594131381,0.18130497,1807.8,1807.5,0.6222]
[1745594131534,0.8249,1807.9,1807.4,6.222]
[1745594131738,0.16349579,1807.8,1807.4,6.222]
[1745594131972,0.7624,1807.7,1807.1,2.07264802]
[1745594132276,0.16322509,1807.6,1807.2,0.05532391]
[1745594132446,0.16322509,1807.6,1807.1,14.23811019]
[1745594132775,0.7624,1807.7,1807.2,1.42381102]
[1745594133551,0.16280688,1807.6,1807.2,1.42381102]
[1745594133751,0.7624,1807.7,1807.2,1.42381102]
[1745594133951,0.16265819,1807.6,1807.2,1.42381102]
[1745594134192,0.7624,1807.7,1807.2,1.42381102]
[1745594134391,0.16271394,1807.6,1807.2,1.42381102]
[1745594134592,0.7624,1807.7,1807.2,1.47913589]
[1745594134792,0.1627697,1807.6,1807.2,1.42381102]
[1745594135083,0.7624,1807.7,1807.2,1.4791359]
[1745594135958,0.7624,1807.7,1807.2,1.42381102]
[1745594136161,0.16234203,1807.6,1807.2,1.42381102]
[1745594136366,0.7624,1807.7,1807.1,8.3509678]
[1745594136586,0.16217467,1807.6,1807.1,14.23811019]
[1745594136772,0.7624,1807.7,1807.1,14.23811019]
[1745594137377,0.16241641,1807.6,1807.1,8.29564802]
[1745594137701,0.7624,1807.7,1807.1,8.29564802]
[1745594137998,0.16137062,1807.6,1807.1,2.07264802]
[1745594138298,0.16137062,1807.6,1807.1,8.01511019]
[1745594140009,0.16137062,1807.6,1807.1,8.07043004]
[1745594140306,0.16137062,1807.6,1807.1,8.01511019]
[1745594140508,0.16137062,1807.6,1807.1,8.07043367]
[1745594140664,0.16137062,1807.6,1807.1,8.87747704]
[1745594140862,0.16137062,1807.6,1807.1,2.87969139]
[1745594141070,0.16137062,1807.6,1807.1,2.07264802]
[1745594141472,0.7756,1807.5,1807.1,2.07264802]
[1745594141888,0.1608212,1807.4,1807.1,2.07264802]
[1745594142418,0.1608212,1807.4,1807.2,0.05533149]
[1745594142588,0.1608212,1807.4,1807.1,2.12797256]
[1745594142920,0.7756,1807.5,1807.1,2.07264802]
[1745594143097,0.7756,1807.5,1807.1,2.12797242]
[1745594143616,0.7756,1807.5,1807.1,2.07264802]
[1745594144724,0.7756,1807.5,1807.1,2.12797251]
[1745594146091,0.7756,1807.5,1807.1,2.07264802]
[1745594146325,0.8087,1807.8,1807.3,5.94246217]
[1745594146617,0.15485973,1807.7,1807.4,0.59424622]
[1745594146910,0.15485973,1807.7,1807.4,0.6495662]
[1745594147113,0.15485973,1807.7,1807.1,8.01511019]
[1745594147114,0.15485973,1807.7,1807.1,2.07264802]
[1745594147623,0.8296,1807.6,1806.7,2.85864802]
[1745594147789,0.98543045,1807.6,1806.7,9.08464802]
[1745594148193,0.98543045,1807.6,1807.0,5.94246217]
[1745594148397,0.98543045,1807.6,1807.1,0.64957005]
[1745594148632,0.98543045,1807.6,1807.1,2.66689424]
[1745594149341,0.98543045,1807.6,1807.1,2.07264802]
[1745594149745,0.98543045,1807.6,1806.7,8.29864802]
[1745594153769,0.15439791,1807.4,1806.8,0.83539893]
[1745594154273,0.8031,1807.3,1806.8,0.83539893]
[1745594154625,0.15432229,1807.2,1806.8,0.83539893]
[1745594154890,0.8031,1807.3,1806.8,0.83539893]
[1745594155455,0.15268604,1807.2,1806.8,0.83539893]
[1745594155657,0.781,1807.1,1806.8,0.83539893]
[1745594156061,0.781,1807.1,1806.7,8.29864802]
[1745594156062,0.781,1807.1,1806.4,2.07264802]
[1745594156275,0.15248949,1807.0,1806.5,0.0553484]
[1745594156644,0.781,1807.1,1806.5,0.0553484]
[1745594157173,0.15029515,1807.0,1806.5,0.0553484]
[1745594157386,0.15029515,1807.0,1806.6,1.20567174]
[1745594157571,0.781,1807.1,1806.8,1.20567174]
[1745594157901,0.15029515,1807.0,1806.6,1.20567174]
[1745594158098,0.15029515,1807.0,1806.4,2.07264802]
[1745594158392,0.781,1807.1,1806.6,1.20567174]
[1745594159387,0.781,1807.1,1806.5,1.20567174]
[1745594159693,0.781,1807.1,1806.4,3.02189354]
[1745594160075,0.14996024,1807.0,1806.4,4.28291329]
[1745594160264,0.14996024,1807.0,1806.6,1.20567174]
[1745594160482,0.8126,1807.0,1806.6,1.20567174]
[1745594163184,0.8126,1807.0,1806.4,3.02189354]
[1745594163874,0.1500387,1806.9,1806.5,1.50786109]
[1745594164168,0.8126,1807.0,1806.5,1.50786109]
[1745594164367,0.8126,1807.0,1806.5,0.30218935]
[1745594165284,0.14988982,1806.9,1806.5,1.50786109]
[1745594168899,0.14988982,1806.9,1806.5,0.30218935]
[1745594169696,1.99807174,1806.8,1806.1,0.1]
[1745594169937,0.7924,1806.5,1806.1,0.1]
[1745594170305,0.14760273,1806.4,1806.1,0.1]
[1745594170499,0.7924,1806.3,1806.1,0.1]
[1745594171035,0.14721968,1806.2,1806.1,0.1]
[1745594171258,1.99807174,1806.2,1806.1,0.1]
[1745594171464,2.14510513,1806.2,1806.1,0.1]
[1745594171647,5.65961564,1806.2,1806.1,0.1]
[1745594171846,4.86721564,1806.2,1805.4,6.211]
[1745594172050,1.20567174,1805.8,1805.2,0.5]
[1745594172351,0.7924,1805.5,1805.2,0.5]
[1745594172853,0.7924,1805.3,1805.2,0.5]
[1745594173231,0.93813672,1805.3,1805.2,0.5]
[1745594175211,4.35499934,1805.3,1805.2,0.5]
[1745594175552,4.91106645,1805.3,1805.2,0.5]
[1745594175756,0.93813672,1805.3,1805.2,0.5]
[1745594176659,0.14573672,1805.3,1805.2,0.5]
[1745594177160,0.7924,1805.5,1805.2,0.5]
[1745594177359,0.12727515,1805.3,1805.2,0.5]
[1745594177722,0.7924,1805.5,1805.2,0.5]
[1745594177923,0.12729379,1805.3,1805.2,0.5]
[1745594178120,0.7924,1805.5,1805.2,0.5]
[1745594178353,0.12729379,1805.3,1805.2,0.5]
[1745594178546,0.7924,1805.5,1805.2,0.5]
[1745594178761,0.7924,1805.5,1805.2,1.1568442]
[1745594178943,0.7924,1805.5,1805.2,0.5]
[1745594179420,0.8067,1805.3,1805.2,0.5]
[1745594179646,3.0,1805.2,1805.1,0.1]
[1745594179850,3.8067,1805.2,1805.1,0.1]
[1745594180160,1.91539895,1805.2,1805.1,0.1]
[1745594180478,0.92594482,1805.2,1805.1,0.1]
[1745594180765,0.92594482,1805.2,1804.3,2.57264802]
[1745594180974,0.92594482,1805.2,1804.3,0.5]
[1745594181772,0.92594482,1805.2,1804.3,1.2582]
[1745594183619,0.92594482,1805.2,1804.3,0.5]
[1745594185265,0.7562,1805.1,1804.3,0.5]
[1745594185467,0.87508513,1805.1,1804.3,0.5]
[1745594185964,3.0,1805.0,1804.3,0.5]
[1745594186162,0.7811,1804.9,1804.3,0.5]
[1745594186381,0.7811,1804.7,1804.3,0.5]
[1745594186760,0.7513,1804.5,1804.3,0.5]
[1745594187072,0.11819479,1804.4,1804.3,0.5]
[1745594187636,0.94259479,1804.4,1804.3,0.5]
[1745594189941,1.33685427,1804.4,1804.3,0.5]
[1745594190575,10.30529625,1804.4,1804.3,0.5]
[1745594191362,4.33685427,1804.4,1804.3,0.5]
[1745594192235,0.7684,1804.3,1804.1,0.1]
[1745594192440,0.11177157,1804.2,1804.1,0.1]
[1745594192677,1.19134873,1804.2,1804.1,0.1]
[1745594194263,10.15979071,1804.2,1804.1,0.1]
[1745594194466,3.0,1804.1,1803.2,0.04043993]
[1745594194678,3.8249,1803.8,1803.2,0.04043993]
[1745594194841,0.8249,1803.8,1803.2,0.04043993]
[1745594195044,0.11125944,1803.7,1803.2,0.04043993]
[1745594195261,0.11125944,1803.7,1803.5,5.96844198]
[1745594195453,0.8249,1804.3,1803.5,5.96844198]
[1745594195638,0.8249,1804.3,1803.5,12.17244198]
[1745594195978,0.8249,1804.3,1803.6,0.7535]
[1745594196489,0.8249,1804.6,1803.9,5.96844198]
[1745594196691,0.8249,1804.6,1804.0,0.5968442]
[1745594196988,0.8249,1804.5,1803.7,2.07264802]
[1745594197193,0.8249,1804.5,1803.6,6.9575]
[1745594197194,3.8249,1804.5,1803.6,0.7535]
[1745594197339,3.8249,1804.5,1803.4,19.627]
[1745594197340,0.8249,1804.2,1803.4,22.831]
[1745594197753,0.8249,1804.2,1803.6,0.7535]
[1745594197954,0.12409025,1804.1,1803.6,0.7535]
[1745594198184,0.12409025,1804.1,1803.6,1.4256942]
[1745594198387,0.8249,1804.2,1803.6,1.4256942]
[1745594198793,0.12406786,1804.1,1803.4,22.831]
[1745594198998,0.8249,1804.2,1803.4,22.831]
[1745594199791,0.8249,1804.2,1803.5,5.96844198]
[1745594200111,0.8249,1804.2,1803.5,6.73814198]
[1745594200484,0.8249,1804.2,1803.6,6.204]
[1745594200666,0.8249,1804.2,1803.6,7.4982142]
[1745594200870,0.8249,1804.2,1803.6,7.5536498]
[1745594201601,0.8249,1804.2,1803.6,7.55364973]
[1745594201801,0.8249,1804.2,1803.6,7.4982142]
[1745594204083,0.8201,1804.5,1803.7,6.76454198]
[1745594204411,1.16205717,1804.5,1803.8,0.6764542]
[1745594204606,1.16205717,1804.5,1803.7,0.7961]
[1745594204607,0.8201,1804.4,1803.7,0.7961]
[1745594207980,0.8201,1804.4,1803.6,7.4982142]
[1745594209202,0.8201,1804.4,1803.7,0.05543588]
[1745594209396,0.8201,1804.4,1803.6,7.4982142]
[1745594211436,0.8201,1804.4,1803.7,1.20959146]
[1745594211736,0.8201,1804.4,1803.7,1.26501963]
[1745594212031,0.8201,1804.4,1803.7,1.20959146]
[1745594212598,0.8201,1804.4,1803.7,1.26501965]
[1745594212754,0.8201,1804.4,1803.9,2.00889146]
[1745594213114,0.8201,1804.4,1803.9,0.7993]
[1745594213419,0.8201,1804.4,1803.7,6.30718713]
[1745594213629,0.8201,1804.4,1803.8,0.63071871]
[1745594213941,0.8201,1804.4,1803.8,8.04431017]
[1745594214147,0.8201,1804.4,1803.8,8.09974115]
[1745594214337,0.8201,1804.4,1803.8,8.04431017]
[1745594216155,0.8201,1804.4,1803.8,6.83471871]
[1745594216355,2.02969146,1804.4,1803.8,6.204]
[1745594216556,0.7739,1804.3,1803.8,6.188]
[1745594216754,0.7739,1804.1,1803.3,2.07264802]
[1745594216960,0.7739,1804.1,1803.4,6.188]
[1745594217137,0.7739,1804.1,1803.5,0.6188]
[1745594217447,0.7739,1804.1,1803.5,0.67423871]
[1745594217836,0.7739,1804.1,1803.5,3.47034802]
[1745594218527,0.7739,1804.1,1803.4,6.188]
[1745594218528,0.7739,1804.0,1803.4,6.188]
[1745594218733,5.97331248,1803.9,1803.2,0.04043993]
[1745594218931,0.7739,1803.8,1803.2,0.87479651]
[1745594219132,0.7739,1803.8,1803.2,0.04043993]
[1745594226467,0.7739,1803.8,1803.2,6.84110926]
[1745594226763,0.7739,1803.8,1803.3,0.68411093]
[1745594226953,0.7739,1803.8,1803.2,6.22943993]
[1745594227656,0.7739,1803.8,1803.2,0.04043993]
[1745594227810,3.7773,1803.7,1803.2,0.04043993]
[1745594227991,0.7773,1803.6,1803.2,0.04043993]
[1745594231431,1.18775416,1803.6,1803.2,0.04043993]
[1745594231725,0.7962,1803.5,1803.2,0.04043993]
[1745594232682,3.0,1803.4,1803.2,0.04043993]
[1745594232925,1.0903,1803.3,1803.2,0.04043993]
[1745594233524,0.7903,1803.3,1803.2,0.04043993]
[1745594233726,1.20574448,1803.3,1803.2,0.04043993]
[1745594234108,0.41544448,1803.3,1803.1,0.5141939]
[1745594234277,0.8014,1803.2,1803.1,0.5141939]
[1745594235227,0.8014,1803.1,1802.0,15.0376605]
[1745594235429,0.8014,1803.1,1802.2,5.97331248]
[1745594236334,0.8014,1803.1,1802.4,5.97331248]
[1745594236547,0.8014,1803.1,1802.2,0.832]
[1745594236698,0.8014,1803.1,1802.4,5.97331248]
[1745594237200,0.8014,1803.1,1802.3,6.191]
[1745594237633,0.8014,1803.1,1802.3,6.8933]
[1745594237798,0.8014,1803.1,1802.1,10.58707853]
[1745594237799,0.8014,1803.1,1802.1,1.61376605]
[1745594238033,0.8201,1802.9,1802.1,0.1]
[1745594238340,0.8201,1802.9,1802.2,5.97331248]
[1745594239028,0.8201,1802.9,1802.4,5.97331248]
[1745594239226,0.8276,1803.2,1802.6,5.97331248]
[1745594239414,0.8276,1803.2,1802.5,9.47459285]
[1745594239611,0.8276,1803.2,1802.5,8.26364802]
[1745594239810,0.8276,1803.2,1802.5,2.07264802]
[1745594240022,1.21036,1803.2,1802.5,2.4773173]
[1745594240221,0.8185,1803.1,1802.5,2.07264802]
[1745594240422,0.8185,1803.1,1802.6,1.21094483]
[1745594241532,0.8185,1803.1,1802.5,2.07264802]
[1745594241844,1.23239176,1803.1,1802.5,2.07264802]
[1745594242201,0.79,1802.9,1802.2,6.192]
[1745594242408,0.79,1802.7,1802.1,0.1]
[1745594242604,0.7822,1802.5,1802.1,0.1]
[1745594242798,0.7822,1802.5,1802.1,1.31094483]
[1745594243506,0.7822,1802.7,1802.3,1.21094483]
[1745594243706,0.7822,1802.7,1802.2,5.98123134]
[1745594243941,0.7822,1803.2,1802.4,0.7648]
[1745594244146,0.7822,1803.2,1802.4,2.07264802]
[1745594244350,0.7822,1803.1,1802.4,2.07264802]
[1745594245242,0.7822,1803.1,1802.4,8.05387936]
[1745594245841,0.7822,1803.1,1802.4,5.07264802]
[1745594246053,0.7822,1803.1,1802.5,0.5072648]
[1745594246643,0.7822,1803.1,1802.4,2.07264802]
[1745594247145,0.7822,1803.1,1802.6,5.98123134]
[1745594247302,0.7822,1803.7,1803.0,5.98123134]
[1745594247503,0.7822,1803.7,1802.9,0.7648]
[1745594248103,1.19442224,1803.7,1802.9,0.7648]
[1745594248355,1.19442224,1803.7,1803.0,0.05545688]
[1745594248500,0.7822,1803.7,1803.0,0.68014882]
[1745594249305,0.7822,1803.7,1803.1,6.74663134]
[1745594249505,0.7822,1803.7,1803.1,6.80208082]
[1745594249733,0.7822,1803.7,1803.0,3.68014882]
[1745594249939,0.7822,1803.7,1803.0,6.66138016]
[1745594250431,0.7822,1803.7,1803.0,0.68014882]
[1745594250598,0.7822,1803.7,1802.9,3.7654]
[1745594251239,0.7822,1803.7,1802.9,0.7654]
[1745594253031,0.7822,1803.7,1802.8,3.0]
[1745594253345,0.7822,1803.7,1802.8,8.98123134]
[1745594253831,0.7822,1803.7,1802.8,9.03668906]
[1745594254148,0.7822,1803.7,1802.9,0.90366891]
[1745594255310,0.7822,1803.7,1803.0,5.98123134]
[1745594255942,0.7822,1803.7,1802.9,0.90366891]
[1745594256447,3.0,1803.5,1802.6,2.07264802]
[1745594256602,0.7729,1803.4,1802.6,2.07264802]
[1745594257250,0.7729,1803.4,1802.9,5.98123134]
[1745594257985,0.7729,1803.4,1802.7,9.74913134]
[1745594258342,0.7729,1803.4,1802.7,0.7679]
[1745594258548,0.7729,1803.4,1802.6,2.07264802]
[1745594258994,0.7833,1803.2,1802.2,8.24764802]
[1745594259196,0.7833,1803.2,1802.3,0.8247648]
[1745594259496,0.7833,1803.2,1802.3,8.98123134]
[1745594260150,0.7833,1803.2,1802.5,5.98123134]
[1745594260487,0.7833,1803.2,1802.3,3.0]
[1745594261253,0.7833,1803.2,1802.3,8.98123134]
[1745594261587,0.8246,1803.1,1802.3,8.98123134]
[1745594261904,0.8246,1803.1,1802.4,0.89812313]
[1745594262964,0.8246,1803.1,1802.2,2.07264802]
[1745594263192,0.8104,1802.9,1802.1,0.1]
[1745594263599,0.8104,1802.9,1802.2,5.98123134]
[1745594264106,0.8104,1802.9,1802.4,5.98123134]
[1745594265408,0.8104,1802.9,1802.3,5.12811483]
[1745594265709,0.8104,1802.9,1802.4,9.49404282]
[1745594266071,0.8104,1802.9,1802.6,5.98123134]
[1745594266275,0.7742,1803.4,1802.6,6.03669729]
[1745594266481,0.7742,1803.4,1802.6,8.10934531]
[1745594267288,0.7742,1803.4,1802.6,5.07264802]
[1745594267571,0.7742,1803.4,1802.7,0.5072648]
[1745594267840,0.7742,1803.4,1802.7,6.48849614]
[1745594268469,0.7742,1803.4,1802.9,5.98123134]
[1745594268674,0.7742,1803.4,1802.9,6.77543134]
[1745594268868,0.7742,1803.4,1802.9,12.95143134]
[1745594269108,0.7742,1803.4,1803.0,1.29514313]
[1745594269518,0.7742,1803.4,1802.7,0.5072648]
[1745594269811,0.7742,1803.4,1802.6,2.07264802]
[1745594270010,0.7742,1803.4,1802.7,5.98123134]
[1745594270214,0.7742,1803.4,1803.1,5.98123134]
[1745594270513,0.7821,1804.2,1803.3,5.98123134]
[1745594270720,0.7821,1804.2,1803.5,5.98123134]
[1745594270875,0.7821,1804.2,1803.5,1.72843145]
[1745594271213,2.7867205,1806.2,1804.7,3.8018]
[1745594271412,2.7867205,1806.2,1803.6,0.60543794]
[1745594271413,18.31236891,1809.2,1807.5,5.53243115]
[1745594271614,18.31236891,1809.2,1807.9,8.320295]
[1745594271815,18.31236891,1809.2,1807.6,0.55324312]
[1745594271973,2.37708618,1809.1,1808.0,5.98123134]
[1745594272173,2.37708618,1809.1,1807.9,0.05530435]
[1745594272174,20.59914896,1809.2,1807.6,0.55324312]
[1745594272378,20.59914896,1809.2,1808.2,5.98123134]
[1745594272379,18.31236891,1809.2,1808.2,5.98123134]
[1745594272615,1.86822961,1809.1,1807.8,5.98123134]
[1745594272860,19.54850591,1809.2,1807.8,5.98123134]
[1745594272996,2.46512903,1809.0,1808.1,5.98123134]
[1745594273289,0.8104,1809.1,1807.9,0.49207192]
[1745594273290,16.624,1808.9,1807.9,0.49207192]
[1745594273589,1.6624,1808.8,1807.9,0.49207192]
[1745594273814,0.2,1809.5,1807.6,3.0]
[1745594273815,0.7611,1809.6,1808.7,5.98123134]
[1745594273989,0.7611,1809.6,1808.0,4.32046502]
[1745594273990,7.4411,1809.6,1808.5,5.98123134]
[1745594274201,0.7611,1809.6,1808.5,5.98123134]
[1745594274536,0.7611,1809.6,1809.1,5.98123134]
[1745594274732,6.68,1809.7,1809.4,5.98123134]
[1745594274917,6.68,1809.7,1809.5,0.54733223]
[1745594275118,0.12378507,1809.6,1809.5,0.49207192]
[1745594275413,0.12378507,1809.6,1808.5,0.41486535]
[1745594275414,0.12378507,1809.6,1808.5,6.43356863]
[1745594275613,6.68,1809.5,1808.5,6.43356863]
[1745594275813,6.68,1809.5,1808.8,6.43356863]
[1745594275814,6.68,1809.4,1808.8,6.43356863]
[1745594276113,6.68,1809.4,1807.8,6.88]
[1745594276114,0.83497204,1809.4,1808.5,6.43356863]
[1745594276431,0.83497204,1809.4,1808.6,0.05527352]
[1745594276432,6.675,1809.3,1808.6,0.05527352]
[1745594276632,6.675,1809.2,1808.6,0.05527352]
[1745594276840,6.82633259,1809.2,1808.6,0.05527352]
[1745594277131,6.675,1809.1,1808.6,0.05527352]
[1745594277434,6.82643906,1809.1,1808.6,0.05527352]
[1745594277607,6.82643906,1809.1,1808.6,0.70415774]
[1745594277806,0.15143906,1809.1,1808.9,3.0]
[1745594278013,6.675,1809.7,1809.0,0.05525785]
[1745594278214,6.675,1809.7,1809.2,6.43356863]
[1745594278407,0.13963985,1809.6,1809.2,6.43356863]
[1745594278611,0.13963985,1809.6,1809.0,3.0]
[1745594278807,0.13963985,1809.6,1808.7,6.08]
[1745594278808,0.82110383,1809.6,1808.7,6.08]
[1745594279234,3.82110383,1809.6,1808.7,6.08]
[1745594279738,3.0,1809.3,1808.1,6.08]
[1745594279948,3.0,1809.1,1807.9,6.43356863]
[1745594280101,16.601,1809.0,1808.0,3.64335686]
[1745594280442,0.13889805,1808.9,1808.0,3.64335686]
[1745594280851,3.13889805,1808.9,1808.0,0.64335686]
[1745594281001,3.13889805,1808.9,1807.9,6.43356863]
[1745594281441,3.13889805,1808.9,1808.0,0.55]
[1745594281737,0.13889805,1808.9,1808.0,0.60529636]
[1745594281938,6.671,1808.8,1808.2,6.43356863]
[1745594282236,7.49056677,1808.8,1808.2,6.43356863]
[1745594282796,7.49056677,1808.8,1807.9,6.43356863]
[1745594283035,0.779,1808.7,1807.9,6.43356863]
[1745594283240,0.13857696,1808.8,1808.2,6.43356863]
[1745594283439,11.95853015,1810.0,1808.5,6.43356863]
[1745594283440,0.13838081,1808.6,1808.5,6.43356863]
[1745594283601,6.669,1808.9,1808.5,6.43356863]
[1745594283944,0.779,1809.1,1808.2,0.55]
[1745594284098,0.12726386,1808.8,1808.4,0.55]
[1745594284301,6.669,1809.4,1808.6,0.55]
[1745594284500,0.12575205,1809.3,1808.6,0.55]
[1745594284736,6.669,1809.5,1808.7,0.055264]
[1745594284898,0.11525477,1809.2,1808.7,6.13526388]
[1745594285100,0.11525477,1809.2,1808.9,0.55]
[1745594285450,0.779,1809.8,1809.0,3.55]
[1745594285650,0.064084,1809.9,1809.2,3.55]
[1745594285850,0.064084,1809.9,1809.4,0.55]
[1745594286059,0.064084,1809.9,1809.6,0.55]
[1745594286201,0.064084,1809.9,1809.4,0.55]
[1745594286541,0.064084,1809.9,1809.6,0.55]
[1745594286719,0.064084,1809.9,1809.5,0.55]
[1745594286914,0.064084,1809.9,1809.2,9.08]
[1745594287102,0.064084,1809.9,1809.3,0.55]
[1745594287303,0.064084,1809.9,1809.3,1.513]
[1745594287504,0.064084,1809.9,1809.5,0.55]
[1745594288014,0.064084,1809.9,1809.4,3.0]
[1745594288199,0.064084,1809.9,1809.5,0.6052504]
[1745594288403,0.064084,1809.9,1809.6,0.55]
[1745594288702,0.064084,1809.9,1809.7,0.05524465]
[1745594288904,0.064084,1809.9,1809.8,0.55]
[1745594289105,0.4141939,1810.4,1809.8,6.63]
[1745594289438,0.4141939,1810.4,1810.0,0.55]
[1745594289747,0.4141939,1810.4,1810.2,0.55]
[1745594289899,0.4141939,1810.4,1810.3,0.6052194]
[1745594290100,0.5206164,1810.4,1810.3,0.6052194]
[1745594290310,0.4141939,1810.4,1810.3,0.6052194]
[1745594290648,7.4497,1811.8,1810.4,0.55]
[1745594290799,0.74497,1811.7,1810.6,3.55]
[1745594291004,0.85577055,1811.7,1810.8,0.55]
[1745594291206,0.11080055,1811.7,1811.2,3.55]
[1745594291447,0.4141939,1812.3,1811.2,3.55]
[1745594291448,7.0771939,1812.3,1811.4,0.55]
[1745594291644,7.0771939,1812.3,1810.9,3.7884]
[1745594291832,7.0771939,1812.3,1811.3,0.55]
[1745594291833,6.77800774,1812.2,1811.3,0.55]
[1745594292140,0.11500774,1812.2,1811.8,3.5]
[1745594292342,6.43356863,1813.5,1811.8,3.5]
[1745594292343,0.8303,1813.3,1812.1,3.0]
[1745594292701,6.663,1813.2,1811.9,3.35]
[1745594292909,3.0,1813.1,1811.9,0.40516524]
[1745594293163,0.8303,1813.3,1812.1,3.0]
[1745594293449,0.8303,1813.3,1812.3,6.43356863]
[1745594293654,0.8303,1813.3,1812.4,0.05514841]
[1745594293816,16.581,1813.8,1812.6,6.43356863]
[1745594293817,0.8091,1813.8,1812.6,6.43356863]
[1745594294019,0.8091,1813.8,1812.7,3.05514567]
[1745594294345,0.4141939,1814.1,1813.1,0.55]
[1745594294520,12.36027885,1814.1,1812.7,3.55]
[1745594294718,0.4141939,1814.1,1812.7,3.55]
[1745594295030,0.4141939,1814.1,1812.9,0.55]
[1745594295235,0.4141939,1814.1,1813.1,0.55]
[1745594295606,0.4141939,1814.1,1813.6,0.55]
[1745594296017,0.4141939,1814.1,1813.5,0.55]
[1745594296231,0.8271,1815.3,1814.0,3.55]
[1745594296504,0.8271,1815.3,1813.7,3.55]
[1745594296505,12.40920139,1815.2,1813.7,3.55]
[1745594296705,6.9,1815.1,1813.7,3.55]
[1745594296948,0.69,1815.0,1813.7,0.55]
[1745594297156,0.8141,1814.8,1813.5,0.55]
[1745594297303,3.0,1814.6,1813.7,0.55]
[1745594297502,6.896,1814.5,1813.8,0.05511316]
[1745594297740,6.896,1814.7,1813.8,0.55]
[1745594297953,0.1111827,1814.7,1814.5,6.43356863]
[1745594298137,0.1111827,1814.7,1814.5,6.98356863]
[1745594298138,0.10553474,1814.6,1814.5,6.98356863]
[1745594298455,0.1111827,1814.7,1814.6,0.55]
[1745594298807,0.005,1816.0,1814.9,0.7709]
[1745594299006,2.0751091,1818.3,1816.3,0.55]
[1745594299250,0.8057,1818.2,1816.5,0.7709]
[1745594299590,0.2,1818.1,1816.7,0.55]
[1745594299753,0.8057,1818.2,1816.9,0.55]
[1745594299955,6.43356863,1817.8,1816.5,0.7709]
[1745594300157,5.50176056,1817.6,1816.5,0.7709]
[1745594300355,0.64335686,1817.7,1816.5,0.7709]
[1745594300568,16.56,1817.9,1816.5,0.7709]
[1745594300770,7.23926863,1818.2,1816.5,0.7709]
[1745594300946,0.8153,1818.8,1816.9,6.43356863]
[1745594301143,0.8153,1818.8,1817.3,3.7957]
[1745594301446,6.43356863,1819.1,1817.6,0.55]
[1745594301647,0.8153,1819.1,1817.7,0.05498692]
[1745594301989,0.8153,1819.1,1817.8,0.55]
[1745594302187,0.35818318,1819.2,1818.2,0.55]